fUST/lending_fUST_20240323
["ID","MTS","AMOUNT","RATE_DAILY","PERIOD"]
[320060060,1711123844507,-1109.69,0.00027945,2]
[320060061,1711123844516,-500.0,0.00027945,2]
[320060062,1711123844529,-500.0,0.00027945,2]
[320060063,1711123844538,-2339.26,0.00027945,2]
[320060064,1711123844549,-606.92371417,0.00027945,2]
[320060065,1711123844558,-500.0,0.00027945,2]
[320060066,1711123844568,-500.0,0.00027945,2]
[320060067,1711123844577,-500.0,0.00027945,2]
[320060068,1711123844587,-500.0,0.00027945,2]
[320060069,1711123844596,-500.0,0.00027945,2]
[320060070,1711123844605,-500.0,0.00027945,2]
[320060071,1711123844615,-500.0,0.00027945,2]
[320060072,1711123844624,-954.83,0.00027945,2]
[320060073,1711123844633,-221.173067,0.00027945,2]
[320060074,1711123844643,-500.0,0.00027945,2]
[320060075,1711123844652,-1137.39,0.00027945,2]
[320060076,1711123844661,-500.0,0.00027945,2]
[320060077,1711123844671,-500.0,0.00027945,2]
[320060078,1711123844680,-657.21,0.00027945,2]
[320060079,1711123844690,-500.0,0.00027945,2]
[320060080,1711123844699,-1616.23,0.00027945,2]
[320060081,1711123844709,-500.0,0.00027945,2]
[320060082,1711123844833,-500.0,0.00027945,2]
[320060083,1711123844843,-500.0,0.00027945,2]
[320060084,1711123844852,-500.0,0.00027945,2]
[320060085,1711123844862,-1662.36,0.00027945,2]
[320060086,1711123844871,-500.0,0.00027945,2]
[320060087,1711123844880,-1000.0,0.00027945,2]
[320060088,1711123844889,-500.0,0.00027945,2]
[320060089,1711123844898,-500.0,0.00027945,2]
[320060090,1711123844908,-500.0,0.00027945,2]
[320060091,1711123844917,-500.0,0.00027945,2]
[320060092,1711123844926,-500.0,0.00027945,2]
[320060093,1711123844936,-599.47,0.00027945,2]
[320060094,1711123844945,-500.0,0.00027945,2]
[320060095,1711123844954,-500.0,0.00027945,2]
[320060096,1711123844964,-500.0,0.00027945,2]
[320060097,1711123844972,-573.73,0.00027945,2]
[320060098,1711123844982,-151.0,0.00027945,2]
[320060099,1711123844991,-151.0,0.00027945,2]
[320060100,1711123845001,-500.0,0.00027945,2]
[320060101,1711123845011,-151.0,0.00027945,2]
[320060102,1711123845023,-151.0,0.00027945,2]
[320060103,1711123845032,-500.0,0.00027945,2]
[320060104,1711123845041,-500.0,0.00027945,2]
[320060105,1711123845051,-500.0,0.00027945,2]
[320060106,1711123845060,-500.0,0.00027945,2]
[320060107,1711123845070,-500.0,0.00027945,2]
[320060108,1711123845080,-151.0,0.00027945,2]
[320060109,1711123845089,-151.0,0.00027945,2]
[320060110,1711123845098,-500.0,0.00027945,2]
[320060111,1711123845110,-500.0,0.00027945,2]
[320060112,1711123845119,-500.0,0.00027945,2]
[320060113,1711123845129,-500.0,0.00027945,2]
[320060114,1711123845138,-522.82320032,0.00027945,2]
[320060115,1711123845149,-500.0,0.00027945,2]
[320060116,1711123845158,-500.0,0.00027945,2]
[320060117,1711123845167,-500.0,0.00027945,2]
[320060118,1711123845176,-397.63473474,0.00027945,2]
[320060119,1711123845187,-500.0,0.00027945,2]
[320060120,1711123845196,-500.0,0.00027945,2]
[320060121,1711123845205,-500.0,0.00027945,2]
[320060122,1711123845214,-500.0,0.00027945,2]
[320060123,1711123845224,-500.0,0.00027945,2]
[320060124,1711123845234,-210.83739809,0.00027945,2]
[320060125,1711123845243,-501.90478215,0.00027945,2]
[320060126,1711123845252,-500.0,0.00027945,2]
[320060127,1711123845261,-500.0,0.00027945,2]
[320060128,1711123845273,-500.0,0.00027945,2]
[320060129,1711123845283,-500.0,0.00027945,2]
[320060130,1711123845292,-500.0,0.00027945,2]
[320060131,1711123845301,-500.0,0.00027945,2]
[320060132,1711123845310,-500.0,0.00027945,2]
[320060133,1711123845319,-500.0,0.00027945,2]
[320060134,1711123845328,-500.0,0.00027945,2]
[320060135,1711123845338,-500.0,0.00027945,2]
[320060136,1711123845347,-3108.1,0.00027945,2]
[320060137,1711123845357,-500.0,0.00027945,2]
[320060138,1711123845366,-1000.0,0.00027945,2]
[320060139,1711123845375,-500.0,0.00027945,2]
[320060140,1711123845385,-2114.85,0.00027945,2]
[320060141,1711123845394,-500.0,0.00027945,2]
[320060142,1711123845404,-500.0,0.00027945,2]
[320060143,1711123845413,-1395.04,0.00027945,2]
[320060144,1711123845423,-500.0,0.00027945,2]
[320060145,1711123845434,-151.0,0.00027945,2]
[320060147,1711123845444,-2006.28,0.00027945,2]
[320060149,1711123845455,-394.71182017,0.00027945,2]
[320060151,1711123845465,-766.56,0.00027945,2]
[320060153,1711123845475,-525.84,0.00027945,2]
[320060155,1711123845485,-7737.71,0.00027945,2]
[320060157,1711123845495,-938.67,0.00027945,2]
[320060159,1711123845505,-500.0,0.00027945,2]
[320060161,1711123845515,-151.0,0.00027945,2]
[320060163,1711123845532,-151.0,0.00027945,2]
[320060164,1711123845541,-151.0,0.00027945,2]
[320060166,1711123845550,-151.0,0.00027945,2]
[320060168,1711123845560,-151.0,0.00027945,2]
[320060170,1711123845569,-500.0,0.00027945,2]
[320060172,1711123845578,-19013.04,0.00027945,2]
[320060174,1711123845587,-151.0,0.00027945,2]
[320060176,1711123845597,-4665.16,0.00027945,2]
[320060178,1711123845606,-288.82541,0.00027945,2]
[320060180,1711123845615,-500.0,0.00027945,2]
[320060181,1711123845625,-2132.99,0.00027945,2]
[320060183,1711123845635,-500.26798743,0.00027945,2]
[320060185,1711123845645,-500.0,0.00027945,2]
[320060187,1711123845654,-1881.92,0.00027945,2]
[320060189,1711123845664,-4757.65,0.00027945,2]
[320060191,1711123845674,-643.99,0.00027945,2]
[320060193,1711123845684,-500.0,0.00027945,2]
[320060195,1711123845693,-500.0,0.00027945,2]
[320060197,1711123845702,-500.0,0.00027945,2]
[320060199,1711123845714,-500.0,0.00027945,2]
[320060200,1711123845723,-500.0,0.00027945,2]
[320060201,1711123845732,-500.0,0.00027945,2]
[320060202,1711123845741,-534.93257802,0.00027945,2]
[320060203,1711123845750,-500.0,0.00027945,2]
[320060204,1711123845759,-500.0,0.00027945,2]
[320060205,1711123845768,-500.0,0.00027945,2]
[320060206,1711123845782,-500.0,0.00027945,2]
[320060207,1711123845792,-500.0,0.00027945,2]
[320060208,1711123845802,-500.0,0.00027945,2]
[320060209,1711123845811,-500.0,0.00027945,2]
[320060210,1711123845821,-2448.25,0.00027945,2]
[320060211,1711123845830,-500.0,0.00027945,2]
[320060212,1711123845840,-500.0,0.00027945,2]
[320060213,1711123845849,-548.55,0.00027945,2]
[320060215,1711123845859,-500.0,0.00027945,2]
[320060216,1711123845868,-500.0,0.00027945,2]
[320060217,1711123845877,-500.0,0.00027945,2]
[320060218,1711123845886,-500.0,0.00027945,2]
[320060219,1711123845895,-500.0,0.00027945,2]
[320060220,1711123845904,-814.37,0.00027945,2]
[320060221,1711123845914,-500.0,0.00027945,2]
[320060222,1711123845923,-500.0,0.00027945,2]
[320060223,1711123845932,-1784.72,0.00027945,2]
[320060224,1711123845941,-1994.3,0.00027945,2]
[320060225,1711123845950,-500.0,0.00027945,2]
[320060226,1711123845959,-23972.26,0.00027945,2]
[320060227,1711123845968,-500.0,0.00027945,2]
[320060228,1711123845978,-500.0,0.00027945,2]
[320060229,1711123845987,-1132.81,0.00027945,2]
[320060230,1711123845996,-531.01,0.00027945,2]
[320060231,1711123846006,-500.0,0.00027945,2]
[320060232,1711123846016,-1720.46,0.00027945,2]
[320060233,1711123846031,-155.502776,0.00027945,2]
[320060234,1711123846040,-500.0,0.00027945,2]
[320060235,1711123846050,-500.0,0.00027945,2]
[320060236,1711123846060,-2569.87,0.00027945,2]
[320060237,1711123846070,-500.0,0.00027945,2]
[320060238,1711123846081,-500.0,0.00027945,2]
[320060239,1711123846091,-4407.92,0.00027945,2]
[320060240,1711123846101,-500.0,0.00027945,2]
[320060241,1711123846112,-2449.35,0.00027945,2]
[320060242,1711123846122,-500.0,0.00027945,2]
[320060243,1711123846133,-500.0,0.00027945,2]
[320060244,1711123846144,-500.0,0.00027945,2]
[320060245,1711123846154,-528.43,0.00027945,2]
[320060246,1711123846163,-500.0,0.00027945,2]
[320060247,1711123846175,-2021.59,0.00027945,2]
[320060248,1711123846186,-500.0,0.00027945,2]
[320060249,1711123846196,-500.0,0.00027945,2]
[320060250,1711123846206,-500.0,0.00027945,2]
[320060251,1711123846216,-500.0,0.00027945,2]
[320060252,1711123846226,-500.0,0.00027945,2]
[320060253,1711123846236,-810.96,0.00027945,2]
[320060254,1711123846245,-151.0,0.00027945,2]
[320060255,1711123846255,-500.0,0.00027945,2]
[320060256,1711123846264,-1705.53,0.00027945,2]
[320060257,1711123846280,-500.0,0.00027945,2]
[320060258,1711123846290,-500.0,0.00027945,2]
[320060259,1711123846300,-500.0,0.00027945,2]
[320060260,1711123846310,-25425.59,0.00027945,2]
[320060261,1711123846319,-500.0,0.00027945,2]
[320060262,1711123846330,-1742.4,0.00027945,2]
[320060263,1711123846341,-36519.53,0.00027945,2]
[320060264,1711123846351,-601.18,0.00027945,2]
[320060265,1711123846361,-500.0,0.00027945,2]
[320060266,1711123846371,-500.0,0.00027945,2]
[320060267,1711123846381,-500.0,0.00027945,2]
[320060268,1711123846391,-500.0,0.00027945,2]
[320060269,1711123846400,-306.0,0.00027945,2]
[320060270,1711123846409,-153.0,0.00027945,2]
[320060271,1711123846418,-504.49555993,0.00028,2]
[320060272,1711123846427,-166.666666,0.00028038,2]
[320060273,1711123846436,-153.0,0.00028055,2]
[320060274,1711123846445,-153.0,0.00028055,2]
[320060275,1711123846454,-153.0,0.00028055,2]
[320060276,1711123846464,-153.0,0.00028055,2]
[320060277,1711123846473,-153.0,0.00028055,2]
[320060278,1711123846483,-153.0,0.00028055,2]
[320060279,1711123846493,-153.0,0.00028055,2]
[320060280,1711123846502,-306.0,0.00028055,2]
[320060281,1711123846512,-153.0,0.00028055,2]
[320060282,1711123846526,-153.0,0.00028055,2]
[320060283,1711123846535,-153.0,0.00028055,2]
[320060284,1711123846545,-153.0,0.00028055,2]
[320060285,1711123846555,-153.0,0.00028055,2]
[320060286,1711123846564,-153.0,0.00028055,2]
[320060287,1711123846574,-171.90056342,0.00028208,3]
[320060288,1711123846584,-25241.62953987,0.00028393,2]
[320060289,1711123846593,-151.0,0.00028393,2]
[320060290,1711123846603,-151.0,0.00028393,2]
[320060291,1711123846612,-151.0,0.00028393,2]
[320060292,1711123846622,-400.0,0.000284,2]
[320060293,1711123846631,-153.0,0.00028464,2]
[320060294,1711123846640,-306.2103796,0.00028466,2]
[320060295,1711123846650,-153.0,0.00028466,2]
[320060296,1711123846659,-153.0,0.00028466,2]
[320060297,1711123846668,-153.0,0.00028466,2]
[320060298,1711123846677,-153.0,0.00028466,2]
[320060299,1711123846687,-153.0,0.00028466,2]
[320060300,1711123846696,-153.0,0.00028466,2]
[320060301,1711123846706,-153.0,0.00028466,2]
[320060302,1711123846715,-153.0,0.00028466,2]
[320060303,1711123846724,-153.0,0.00028466,2]
[320060304,1711123846734,-153.0,0.00028466,2]
[320060305,1711123846743,-153.0,0.00028466,2]
[320060306,1711123846754,-153.0,0.00028466,2]
[320060307,1711123846763,-153.0,0.00028466,2]
[320060308,1711123846775,-153.0,0.00028466,2]
[320060309,1711123846785,-153.0,0.00028466,2]
[320060310,1711123846794,-153.0,0.00028466,2]
[320060311,1711123846803,-153.0,0.00028466,2]
[320060312,1711123846812,-153.0,0.00028466,2]
[320060313,1711123846821,-153.0,0.00028466,2]
[320060314,1711123846830,-153.0,0.00028466,2]
[320060315,1711123846839,-153.0,0.00028466,2]
[320060316,1711123846848,-153.0,0.00028466,2]
[320060317,1711123846857,-153.0,0.00028466,2]
[320060318,1711123846866,-153.0,0.00028466,2]
[320060319,1711123846876,-153.0,0.00028466,2]
[320060320,1711123846885,-153.0,0.00028466,2]
[320060321,1711123846894,-153.0,0.00028466,2]
[320060322,1711123846903,-153.0,0.00028466,2]
[320060323,1711123846913,-153.0,0.00028466,2]
[320060324,1711123846922,-153.0,0.00028466,2]
[320060325,1711123846932,-153.0,0.00028466,2]
[320060326,1711123846942,-334.341903,0.00028466,2]
[320060327,1711123846952,-306.0,0.00028466,2]
[320060328,1711123846962,-466.7872142,0.00028491,2]
[320060329,1711123846971,-500.0,0.00028491,2]
[320060330,1711123846982,-500.0,0.00028492,2]
[320060331,1711123846991,-212.24,0.00028492,2]
[320060332,1711123847000,-225.03178758,0.00028493,2]
[320060333,1711123847009,-750.46630651,0.00028493,2]
[320060334,1711123847019,-500.0,0.00028493,2]
[320060335,1711123847035,-500.0,0.00028493,2]
[320060336,1711123847045,-500.0,0.00028493,2]
[320060337,1711123847055,-500.0,0.00028493,2]
[320060338,1711123847065,-500.0,0.00028493,2]
[320060340,1711123847075,-500.0,0.00028493,2]
[320060341,1711123847085,-500.0,0.00028493,2]
[320060342,1711123847094,-500.0,0.00028493,2]
[320060343,1711123847106,-500.0,0.00028493,2]
[320060344,1711123847116,-500.0,0.00028493,2]
[320060345,1711123847125,-500.0,0.00028493,2]
[320060346,1711123847135,-500.0,0.00028493,2]
[320060347,1711123847144,-500.0,0.00028493,2]
[320060348,1711123847153,-500.0,0.00028493,2]
[320060349,1711123847163,-500.0,0.00028493,2]
[320060350,1711123847172,-500.0,0.00028493,2]
[320060351,1711123847182,-500.0,0.00028493,2]
[320060352,1711123847191,-500.0,0.00028493,2]
[320060353,1711123847200,-322.84238956,0.00028493,2]
[320060354,1711123847210,-500.0,0.00028493,2]
[320060355,1711123847219,-500.0,0.00028493,2]
[320060357,1711123847228,-500.0,0.00028493,2]
[320060358,1711123847237,-500.0,0.00028493,2]
[320060359,1711123847247,-808.45,0.00028493,2]
[320060360,1711123847256,-1352.66,0.00028493,2]
[320060361,1711123847265,-500.0,0.00028493,2]
[320060362,1711123847277,-500.0,0.00028493,2]
[320060363,1711123847286,-500.0,0.00028493,2]
[320060364,1711123847295,-500.0,0.00028493,2]
[320060365,1711123847305,-918.39,0.00028493,2]
[320060366,1711123847314,-500.0,0.00028493,2]
[320060367,1711123847323,-500.0,0.00028493,2]
[320060368,1711123847332,-162.17961263,0.00028493,2]
[320060369,1711123847352,-500.0,0.00028493,2]
[320060370,1711123847362,-500.0,0.00028493,2]
[320060371,1711123847371,-500.0,0.00028493,2]
[320060372,1711123847381,-500.0,0.00028493,2]
[320060373,1711123847390,-500.0,0.00028493,2]
[320060374,1711123847400,-1773.57,0.00028493,2]
[320060375,1711123847410,-872.69,0.00028493,2]
[320060376,1711123847419,-500.0,0.00028493,2]
[320060377,1711123847429,-500.0,0.00028493,2]
[320060378,1711123847438,-1732.16,0.00028493,2]
[320060379,1711123847448,-500.0,0.00028493,2]
[320060380,1711123847607,-643.42,0.00028493,2]
[320060381,1711123847618,-500.0,0.00028493,2]
[320060382,1711123847627,-728.39,0.00028493,2]
[320060383,1711123847636,-3256.29,0.00028493,2]
[320060384,1711123847646,-261.9357256,0.00028493,2]
[320060385,1711123847656,-823.72,0.00028493,2]
[320060386,1711123847665,-1109.69,0.00028493,2]
[320060387,1711123847675,-500.0,0.00028493,2]
[320060388,1711123847684,-500.0,0.00028493,2]
[320060389,1711123847693,-2339.26,0.00028493,2]
[320060390,1711123847703,-500.0,0.00028493,2]
[320060391,1711123847712,-500.0,0.00028493,2]
[320060392,1711123847722,-500.0,0.00028493,2]
[320060393,1711123847731,-500.0,0.00028493,2]
[320060394,1711123847740,-500.0,0.00028493,2]
[320060395,1711123847750,-500.0,0.00028493,2]
[320060396,1711123847759,-500.0,0.00028493,2]
[320060397,1711123847768,-954.83,0.00028493,2]
[320060398,1711123847781,-512.81,0.00028493,2]
[320060399,1711123847791,-1137.39,0.00028493,2]
[320060400,1711123847800,-500.0,0.00028493,2]
[320060401,1711123847809,-632.49565172,0.00028493,2]
[320060402,1711123847818,-657.21,0.00028493,2]
[320060403,1711123847827,-500.0,0.00028493,2]
[320060404,1711123847837,-1616.23,0.00028493,2]
[320060405,1711123847846,-500.0,0.00028493,2]
[320060406,1711123847855,-500.0,0.00028493,2]
[320060407,1711123847864,-500.0,0.00028493,2]
[320060408,1711123847872,-1662.36,0.00028493,2]
[320060409,1711123847881,-500.0,0.00028493,2]
[320060410,1711123847890,-500.0,0.00028493,2]
[320060411,1711123847898,-500.0,0.00028493,2]
[320060412,1711123847907,-500.0,0.00028493,2]
[320060413,1711123847916,-500.0,0.00028493,2]
[320060414,1711123847925,-599.47,0.00028493,2]
[320060415,1711123847934,-500.0,0.00028493,2]
[320060416,1711123847943,-573.73,0.00028493,2]
[320060417,1711123847953,-151.0,0.00028493,2]
[320060418,1711123847962,-151.0,0.00028493,2]
[320060419,1711123847970,-500.0,0.00028493,2]
[320060420,1711123847979,-151.0,0.00028493,2]
[320060421,1711123847987,-151.0,0.00028493,2]
[320060422,1711123847997,-210.85507968,0.00028493,2]
[320060423,1711123848006,-500.0,0.00028493,2]
[320060424,1711123848015,-500.0,0.00028493,2]
[320060425,1711123848026,-500.0,0.00028493,2]
[320060426,1711123848035,-500.0,0.00028493,2]
[320060427,1711123848043,-151.0,0.00028493,2]
[320060428,1711123848053,-267.741938,0.00028493,2]
[320060429,1711123848062,-500.0,0.00028493,2]
[320060430,1711123848071,-500.0,0.00028493,2]
[320060431,1711123848080,-500.0,0.00028493,2]
[320060432,1711123848093,-500.0,0.00028493,2]
[320060433,1711123848102,-500.0,0.00028493,2]
[320060434,1711123848111,-500.0,0.00028493,2]
[320060435,1711123848120,-500.0,0.00028493,2]
[320060436,1711123848131,-500.0,0.00028493,2]
[320060437,1711123848143,-500.0,0.00028493,2]
[320060438,1711123848153,-500.0,0.00028493,2]
[320060439,1711123848163,-500.0,0.00028493,2]
[320060440,1711123848173,-500.43857309,0.00028493,2]
[320060441,1711123848183,-500.0,0.00028493,2]
[320060442,1711123848193,-500.0,0.00028493,2]
[320060443,1711123848202,-500.0,0.00028493,2]
[320060444,1711123848212,-3108.1,0.00028493,2]
[320060445,1711123848221,-500.0,0.00028493,2]
[320060446,1711123848230,-2114.85,0.00028493,2]
[320060447,1711123848239,-500.0,0.00028493,2]
[320060448,1711123848249,-1395.04,0.00028493,2]
[320060449,1711123848258,-500.0,0.00028493,2]
[320060450,1711123848267,-2006.28,0.00028493,2]
[320060451,1711123848279,-766.56,0.00028493,2]
[320060452,1711123848288,-525.84,0.00028493,2]
[320060453,1711123848297,-7737.71,0.00028493,2]
[320060454,1711123848306,-938.67,0.00028493,2]
[320060455,1711123848316,-500.0,0.00028493,2]
[320060456,1711123848325,-151.0,0.00028493,2]
[320060457,1711123848334,-151.0,0.00028493,2]
[320060458,1711123848343,-500.0,0.00028493,2]
[320060459,1711123848353,-19013.04,0.00028493,2]
[320060460,1711123848362,-151.0,0.00028493,2]
[320060461,1711123848371,-168.62637,0.00028493,2]
[320060462,1711123848379,-4665.16,0.00028493,2]
[320060463,1711123848388,-500.0,0.00028493,2]
[320060464,1711123848398,-2132.99,0.00028493,2]
[320060465,1711123848406,-500.0,0.00028493,2]
[320060466,1711123848415,-1881.92,0.00028493,2]
[320060467,1711123848425,-1104.49778429,0.00028493,2]
[320060468,1711123849326,-8075.4479,0.00027396,2]
[320060469,1711123849336,-395.91513467,0.00027397,2]
[320060470,1711123849346,-153.0,0.00028464,2]
[320060471,1711123849355,-3653.15221571,0.00028493,2]
[320060472,1711123849365,-643.99,0.00028493,2]
[320060473,1711123849372,-500.0,0.00028493,2]
[320060474,1711123849381,-500.0,0.00028493,2]
[320060475,1711123849391,-500.0,0.00028493,2]
[320060476,1711123849400,-500.0,0.00028493,2]
[320060477,1711123849410,-500.0,0.00028493,2]
[320060478,1711123849419,-500.0,0.00028493,2]
[320060479,1711123849428,-500.0,0.00028493,2]
[320060480,1711123849438,-2448.25,0.00028493,2]
[320060481,1711123849447,-500.0,0.00028493,2]
[320060482,1711123849457,-548.55,0.00028493,2]
[320060483,1711123849466,-500.0,0.00028493,2]
[320060484,1711123849476,-500.0,0.00028493,2]
[320060485,1711123849485,-500.0,0.00028493,2]
[320060486,1711123849494,-500.0,0.00028493,2]
[320060487,1711123849502,-500.0,0.00028493,2]
[320060488,1711123849511,-814.37,0.00028493,2]
[320060489,1711123849521,-500.0,0.00028493,2]
[320060490,1711123849531,-500.0,0.00028493,2]
[320060491,1711123849540,-1784.72,0.00028493,2]
[320060492,1711123849549,-1994.3,0.00028493,2]
[320060493,1711123849558,-500.0,0.00028493,2]
[320060494,1711123849567,-23972.26,0.00028493,2]
[320060495,1711123849576,-500.0,0.00028493,2]
[320060496,1711123849585,-619.42858792,0.00028493,2]
[320060497,1711123849594,-1132.81,0.00028493,2]
[320060498,1711123849604,-1720.46,0.00028493,2]
[320060499,1711123849613,-531.01,0.00028493,2]
[320060500,1711123849622,-500.0,0.00028493,2]
[320060501,1711123849632,-2569.87,0.00028493,2]
[320060502,1711123849641,-500.0,0.00028493,2]
[320060503,1711123849651,-500.0,0.00028493,2]
[320060504,1711123849660,-4407.92,0.00028493,2]
[320060505,1711123849669,-500.0,0.00028493,2]
[320060506,1711123849679,-2449.35,0.00028493,2]
[320060507,1711123849689,-500.0,0.00028493,2]
[320060508,1711123849698,-502.01098185,0.00028493,2]
[320060509,1711123849707,-528.43,0.00028493,2]
[320060510,1711123849716,-2021.59,0.00028493,2]
[320060511,1711123849726,-500.0,0.00028493,2]
[320060512,1711123849735,-500.0,0.00028493,2]
[320060513,1711123849744,-500.0,0.00028493,2]
[320060514,1711123849754,-500.0,0.00028493,2]
[320060515,1711123849763,-500.0,0.00028493,2]
[320060516,1711123849773,-810.96,0.00028493,2]
[320060517,1711123849783,-151.0,0.00028493,2]
[320060518,1711123849792,-1705.53,0.00028493,2]
[320060519,1711123849801,-500.0,0.00028493,2]
[320060520,1711123849811,-500.0,0.00028493,2]
[320060521,1711123849820,-500.0,0.00028493,2]
[320060522,1711123849829,-25425.59,0.00028493,2]
[320060523,1711123849838,-1742.4,0.00028493,2]
[320060524,1711123849848,-36519.53,0.00028493,2]
[320060525,1711123849857,-601.18,0.00028493,2]
[320060526,1711123849866,-500.0,0.00028493,2]
[320060527,1711123849875,-500.0,0.00028493,2]
[320060528,1711123849884,-500.0,0.00028493,2]
[320060529,1711123849893,-201.8484782,0.00028493,2]
[320060530,1711123849903,-166.666666,0.00028679,2]
[320060531,1711123849912,-527.76401956,0.00028767,2]
[320060532,1711123849921,-153.0,0.00028767,2]
[320060533,1711123849931,-306.0,0.00028767,2]
[320060534,1711123849940,-16820.75503496,0.0002877,2]
[320060558,1711124421500,10000.0,0.0002,2]
[320060559,1711124436140,1745.11,0.0002,2]
[320060560,1711124540821,155.02325349,0.0002,2]
[320060561,1711124552785,255.08491471,0.0002,2]
[320060626,1711125038345,-2792.11143326,0.00024454,2]
[320060627,1711125038374,-5283.33646674,0.00024454,2]
[320060629,1711125038383,-11551.05104632,0.00024455,5]
[320060631,1711125038392,-250.0,0.00024507,2]
[320060633,1711125038401,-177.0308096,0.00024549,2]
[320060636,1711125038410,-628.200616,0.00024738,2]
[320060637,1711125038419,-24890.0,0.00024825,2]
[320060638,1711125038428,-500.0,0.00025142,2]
[320060639,1711125038437,-500.0,0.00025142,2]
[320060640,1711125038446,-151.80276999,0.0002573,2]
[320060641,1711125038455,-151.80276999,0.0002573,2]
[320060642,1711125038467,-778.05076678,0.00026393,2]
[320060643,1711125038477,-7752.82337168,0.00027,2]
[320060644,1711125038487,-500.0,0.00027044,2]
[320060645,1711125038496,-500.0,0.00027045,2]
[320060646,1711125038505,-500.0,0.00027045,2]
[320060647,1711125038514,-5407.52,0.00027045,2]
[320060648,1711125038523,-500.0,0.00027045,2]
[320060649,1711125038532,-500.0,0.00027045,2]
[320060650,1711125038541,-500.0,0.00027045,2]
[320060651,1711125038551,-2849.09,0.00027045,2]
[320060652,1711125038561,-590.33,0.00027045,2]
[320060653,1711125038570,-500.0,0.00027045,2]
[320060654,1711125038580,-627.12549703,0.00027045,2]
[320060655,1711125038589,-500.0,0.00027045,2]
[320060656,1711125038598,-644.12,0.00027045,2]
[320060657,1711125038607,-1278.79,0.00027045,2]
[320060658,1711125038616,-4361.17,0.00027045,2]
[320060660,1711125038626,-17428.62,0.00027045,2]
[320060662,1711125038635,-4276.4,0.00027045,2]
[320060664,1711125038644,-500.0,0.00027045,2]
[320060666,1711125038654,-1801.15,0.00027045,2]
[320060668,1711125038663,-502.84,0.00027045,2]
[320060670,1711125038672,-1636.0,0.00027045,2]
[320060672,1711125038681,-500.0,0.00027045,2]
[320060673,1711125038690,-500.0,0.00027045,2]
[320060675,1711125038699,-500.0,0.00027045,2]
[320060677,1711125038709,-500.0,0.00027045,2]
[320060679,1711125038718,-503.0735052,0.00027045,2]
[320060681,1711125038730,-500.0,0.00027045,2]
[320060683,1711125038739,-500.0,0.00027045,2]
[320060685,1711125038748,-500.0,0.00027045,2]
[320060687,1711125038758,-500.0,0.00027045,2]
[320060689,1711125038768,-500.0,0.00027045,2]
[320060691,1711125038777,-2244.23,0.00027045,2]
[320060693,1711125038786,-746.5,0.00027045,2]
[320060695,1711125038795,-500.0,0.00027045,2]
[320060696,1711125038804,-368.83574321,0.00027045,2]
[320060697,1711125038814,-1505.4,0.00027045,2]
[320060698,1711125038824,-500.0,0.00027045,2]